bitfinex/quotes_ETHUSD_20250123
["timestamp","ask_amount","ask_price","bid_price","bid_amount"]
[1737632011862,3.11236,3213.0,3212.8,0.55]
[1737632012264,3.11224,3213.2,3212.8,0.55]
[1737632012709,3.11226,3213.1,3212.7,0.12308631]
[1737632012883,3.11242,3213.0,3212.8,0.55]
[1737632013279,0.7627,3213.0,3211.4,0.7643]
[1737632013509,3.11322,3212.1,3211.4,3.8782]
[1737632013922,3.87554,3212.5,3211.4,0.7643]
[1737632014109,3.11271,3212.7,3212.0,4.08279842]
[1737632014421,3.11271,3212.7,3212.0,0.96947842]
[1737632014422,3.11288,3212.5,3212.0,0.96947842]
[1737632014721,3.11278,3212.6,3212.0,0.96947842]
[1737632015018,3.11278,3212.6,3212.0,1.17258784]
[1737632015408,3.11286,3212.5,3212.0,1.17258784]
[1737632015921,3.11286,3212.5,3212.1,0.55]
[1737632016575,3.11303,3212.3,3212.1,0.55]
[1737632018077,3.11303,3212.3,3211.8,0.55]
[1737632018291,3.11303,3212.3,3211.8,0.997464]
[1737632019531,3.11294,3212.4,3211.8,4.110964]
[1737632019731,3.1128,3212.6,3212.0,0.55]
[1737632019933,3.11267,3212.7,3212.0,0.55]
[1737632020130,3.11267,3212.7,3212.2,0.55]
[1737632020299,3.11247,3212.9,3212.2,3.66312]
[1737632020502,3.11255,3212.8,3212.2,3.66312]
[1737632020701,3.11255,3212.8,3212.2,4.340752]
[1737632020944,3.11247,3212.9,3212.2,1.227632]
[1737632021101,3.11271,3212.7,3212.2,1.227632]
[1737632021826,3.11274,3212.6,3212.2,1.227632]
[1737632021998,3.11274,3212.6,3212.1,3.66322]
[1737632022205,3.11274,3212.6,3212.1,0.55]
[1737632022743,3.11261,3212.8,3212.1,0.55]
[1737632022904,3.11261,3212.8,3212.3,0.55]
[1737632023106,3.11265,3212.7,3212.3,0.55]
[1737632023445,3.11274,3212.6,3212.1,0.55]
[1737632023742,3.11265,3212.7,3212.1,0.55]
[1737632024040,3.11265,3212.7,3212.1,3.66319]
[1737632024194,3.11292,3212.5,3211.9,3.11335]
[1737632024396,3.11309,3212.3,3211.7,0.811]
[1737632024623,6.22574,3212.5,3211.8,3.31019715]
[1737632025245,3.11284,3212.5,3211.9,3.66338]
[1737632025548,3.735184,3212.7,3212.1,0.55]
[1737632025716,3.11249,3212.9,3212.3,0.55]
[1737632026051,3.11265,3212.7,3212.3,0.55]
[1737632027264,3.11249,3212.9,3212.3,3.66296]
[1737632027426,3.11229,3213.1,3212.6,0.55]
[1737632027763,3.11229,3213.1,3212.7,0.55]
[1737632028858,3.11229,3213.1,3212.7,1.3317]
[1737632030107,3.8622,3213.3,3212.7,1.3317]
[1737632030108,6.22425,3213.3,3212.7,1.3317]
[1737632030311,6.22425,3213.3,3212.8,0.12296603]
[1737632030312,3.1121,3213.3,3212.8,0.12296603]
[1737632031428,3.11222,3213.2,3212.8,0.12296603]
[1737632031627,3.11222,3213.2,3212.9,0.12296603]
[1737632033046,3.11235,3213.0,3212.9,0.12296603]
[1737632033244,3.93715,3213.0,3212.9,0.12296603]
[1737632033445,3.11245,3212.9,3212.8,0.12296603]
[1737632035384,0.8248,3213.0,3212.3,0.55]
[1737632035675,3.11273,3212.7,3212.3,0.55]
[1737632036063,6.22546,3212.7,3212.3,0.55]
[1737632037471,6.22546,3212.7,3212.4,0.12296603]
[1737632037765,3.11273,3212.7,3212.4,0.12296603]
[1737632038063,0.8248,3213.0,3212.4,0.12296603]
[1737632038297,6.22546,3212.7,3212.4,0.12296603]
[1737632038772,6.22546,3212.7,3212.5,0.12296603]
[1737632038971,3.11273,3212.7,3212.5,0.12296603]
[1737632039377,3.49497,3212.9,3212.5,0.12296603]
[1737632039671,3.11269,3212.7,3212.5,0.12296603]
[1737632040279,3.11249,3212.9,3212.6,0.12296603]
[1737632040436,3.11229,3213.1,3212.7,0.8203]
[1737632040638,3.11236,3213.0,3212.7,0.8203]
[1737632040965,3.11246,3212.9,3212.7,0.8203]
[1737632041340,3.11229,3213.1,3212.7,0.8203]
[1737632041562,3.11229,3213.1,3212.8,0.55]
[1737632041874,3.11236,3213.0,3212.8,0.55]
[1737632042671,3.11236,3213.0,3212.9,0.12296603]
[1737632042993,0.311222,3213.2,3212.9,0.12296603]
[1737632043294,3.11231,3213.1,3212.9,0.12296603]
[1737632043709,3.91431,3213.3,3212.9,0.12296603]
[1737632044008,3.1119,3213.5,3213.0,0.67296603]
[1737632044158,3.0,3213.4,3213.0,0.67296603]
[1737632044362,6.112,3213.4,3213.0,0.67296603]
[1737632045073,3.11208,3213.3,3213.0,0.12296603]
[1737632045263,3.11259,3212.8,3212.4,0.7705]
[1737632045457,3.11265,3212.7,3212.4,0.7705]
[1737632045991,3.11265,3212.7,3212.5,0.55]
[1737632046563,3.11265,3212.7,3212.6,0.12312136]
[1737632048301,4.046415,3212.7,3212.6,0.12312136]
[1737632048864,4.801015,3212.7,3212.6,0.12312136]
[1737632049083,8.28438256,3212.7,3212.6,0.12312136]
[1737632049705,3.1131,3212.3,3211.9,0.19709347]
[1737632050205,3.11298,3212.4,3212.0,0.55]
[1737632050578,3.11295,3212.4,3212.0,0.55]
[1737632050905,3.11295,3212.4,3211.9,3.31048347]
[1737632050906,3.11295,3212.4,3212.1,0.12319359]
[1737632052401,3.11304,3212.3,3212.2,0.12319359]
[1737632054007,3.11295,3212.4,3212.2,0.12319359]
[1737632054816,3.11295,3212.4,3212.0,0.19710594]
[1737632055015,3.11288,3212.5,3212.0,0.19710594]
[1737632055222,3.11295,3212.4,3212.0,0.19710594]
[1737632055407,3.11284,3212.5,3212.1,1.3824]
[1737632055781,3.11284,3212.5,3212.1,0.8324]
[1737632056136,3.11284,3212.5,3211.6,3.11362]
[1737632056137,3.1131,3212.3,3211.8,0.7533]
[1737632056285,3.11315,3212.2,3211.8,0.7533]
[1737632056485,3.1131,3212.3,3211.9,0.55]
[1737632056719,3.11323,3212.1,3211.9,0.55]
[1737632057107,3.11323,3212.1,3212.0,0.1231549]
[1737632057485,3.1131,3212.3,3212.0,0.1231549]
[1737632057682,3.73973987,3213.2,3212.4,3.11293]
[1737632057683,3.11237,3213.0,3212.4,3.11293]
[1737632057910,3.11219,3213.2,3212.3,3.11303]
[1737632058109,3.11219,3213.2,3212.0,0.1231549]
[1737632058110,3.0,3213.1,3212.6,3.66274]
[1737632058902,3.0,3213.1,3212.6,6.77542]
[1737632059098,3.0,3213.1,3212.6,3.66268]
[1737632059303,6.11231,3213.1,3212.6,0.55]
[1737632059631,3.11231,3213.1,3212.6,0.55]
[1737632060028,3.11235,3213.0,3212.6,0.55]
[1737632060231,3.11235,3213.0,3212.7,0.32007928]
[1737632060522,3.11218,3213.2,3212.8,0.55]
[1737632060733,3.11227,3213.1,3212.8,0.55]
[1737632061143,3.11237,3213.0,3212.8,0.55]
[1737632061493,3.11237,3213.0,3212.9,0.1231549]
[1737632062236,3.11218,3213.2,3212.9,0.1231549]
[1737632063237,6.22403,3213.4,3213.0,0.1231549]
[1737632063431,6.923403,3213.4,3213.0,0.1231549]
[1737632063734,3.11223,3213.2,3213.0,0.1231549]
[1737632064747,3.11223,3213.2,3213.1,0.1231549]
[1737632067039,3.11223,3213.2,3212.8,0.55]
[1737632067255,3.11223,3213.2,3212.7,0.55]
[1737632068544,3.11223,3213.2,3212.8,0.32005583]
[1737632069846,3.11223,3213.2,3212.9,0.12309078]
[1737632070416,3.11228,3213.1,3212.9,0.12309078]
[1737632071151,3.11212,3213.3,3212.9,0.12309078]
[1737632071454,3.11212,3213.3,3213.0,0.12309078]
[1737632072139,0.7697,3213.6,3213.1,0.55]
[1737632072468,6.22348,3213.7,3213.1,3.66225]
[1737632072635,3.0,3213.6,3213.1,3.66225]
[1737632072957,6.11178,3213.6,3213.1,3.78534078]
[1737632073324,3.0,3213.6,3213.1,3.78534078]
[1737632073739,6.11178,3213.6,3213.1,3.78534078]
[1737632073956,3.0,3213.6,3213.1,0.67309078]
[1737632074139,3.11203,3213.4,3213.2,0.12309078]
[1737632074469,3.11206,3213.3,3213.2,0.12309078]
[1737632074962,3.88696,3213.3,3213.2,0.12309078]
[1737632075968,3.1119,3213.5,3212.8,0.74685227]
[1737632076262,3.1119,3213.5,3213.0,0.55]
[1737632076639,3.1119,3213.5,3213.2,1.3735]
[1737632076640,3.11189,3213.5,3213.2,1.3735]
[1737632078364,3.11189,3213.5,3213.1,0.86983127]
[1737632078526,3.11189,3213.5,3213.2,0.55]
[1737632078844,3.11189,3213.5,3213.4,0.55]
[1737632080000,3.11189,3213.5,3213.4,0.672979]
[1737632081959,3.734249,3213.5,3213.4,0.122979]
[1737632082895,3.734249,3213.5,3213.0,0.7843]
[1737632083070,3.11199,3213.4,3213.0,0.7843]
[1737632083692,3.11189,3213.5,3213.0,0.7843]
[1737632083891,3.11189,3213.5,3213.1,0.12302812]
[1737632085400,3.11168,3213.7,3213.2,3.66214]
[1737632085603,3.11168,3213.7,3213.4,0.55]
[1737632086503,3.0,3213.8,3213.4,0.55]
[1737632086999,6.11159,3213.8,3213.5,0.12302812]
[1737632087589,6.11164,3213.8,3213.5,0.12302812]
[1737632087789,6.11164,3213.8,3213.4,0.55]
[1737632088004,3.11168,3213.7,3213.4,0.55]
[1737632089626,3.11168,3213.7,3213.5,0.32021831]
[1737632090336,3.0,3213.8,3213.5,0.32021831]
[1737632090493,3.0,3213.8,3213.6,0.12315327]
[1737632090697,6.11161,3213.8,3213.6,0.12315327]
[1737632091729,1.6105,3214.2,3213.7,0.55]
[1737632091928,3.11124,3214.2,3213.8,0.7626]
[1737632092698,3.11104,3214.4,3213.9,0.55]
[1737632092926,3.11121,3214.2,3213.9,0.55]
[1737632093229,3.1111,3214.3,3213.9,0.55]
[1737632093635,3.1111,3214.3,3214.0,0.12315327]
[1737632094123,3.11104,3214.4,3214.0,0.12315327]
[1737632094297,3.11119,3214.2,3214.0,0.12315327]
[1737632094931,3.11119,3214.2,3214.1,0.12315327]
[1737632097823,3.502204,3214.4,3214.1,0.12315327]
[1737632097824,3.11111,3214.3,3214.1,0.12315327]
[1737632098241,3.11111,3214.3,3214.2,0.12315327]
[1737632100549,3.11104,3214.4,3214.2,0.12315327]
[1737632100855,3.11109,3214.3,3214.2,0.12315327]
[1737632103366,3.11104,3214.4,3214.2,0.12315327]
[1737632103774,3.11082,3214.6,3214.2,0.12315327]
[1737632103944,3.1109,3214.5,3214.2,0.91845327]
[1737632104770,3.1109,3214.5,3214.3,0.12315327]
[1737632105276,3.11082,3214.6,3214.3,0.12315327]
[1737632105432,3.11065,3214.8,3214.4,0.55]
[1737632105835,3.11065,3214.8,3214.4,0.67315327]
[1737632106171,3.11045,3215.0,3214.4,0.67315327]
[1737632106371,3.11053,3214.9,3214.4,1.1311076]
[1737632107744,3.11053,3214.9,3214.6,0.55]
[1737632108656,3.11053,3214.9,3214.7,0.8206]
[1737632108841,3.11003,3215.4,3214.7,3.9313]
[1737632109041,3.11034,3215.1,3214.7,0.8206]
[1737632109276,3.11046,3215.0,3214.7,0.8206]
[1737632109928,3.11051,3214.9,3214.7,0.8206]
[1737632110633,3.11051,3214.9,3214.8,0.12288575]
[1737632111498,3.11044,3215.0,3214.8,0.12288575]
[1737632111701,3.11034,3215.1,3214.8,0.12288575]
[1737632111900,3.87101,3214.9,3214.8,0.12288575]
[1737632112660,3.87101,3214.9,3214.2,0.55]
[1737632113004,3.111,3214.4,3214.2,0.55]
[1737632114311,3.11109,3214.3,3214.2,0.55]
[1737632114609,3.8856,3214.4,3214.0,0.55]
[1737632114816,3.8856,3214.4,3214.0,1.01912609]
[1737632115025,3.11124,3214.2,3214.0,1.01912609]
[1737632115166,3.11138,3214.0,3213.9,0.24582089]
[1737632116005,3.11094,3214.5,3213.1,0.20526442]
[1737632116006,0.813,3213.7,3213.1,0.20526442]
[1737632116164,0.813,3213.7,3213.1,4.42e-06]
[1737632116165,3.11204,3213.4,3213.1,4.42e-06]
[1737632116379,3.11206,3213.3,3213.1,4.42e-06]
[1737632116683,3.11158,3213.9,3213.1,4.42e-06]
[1737632116907,3.11167,3213.7,3213.1,4.42e-06]
[1737632117077,3.11178,3213.6,3213.1,4.42e-06]
[1737632117281,3.11178,3213.6,3213.2,0.55]
[1737632117674,3.11178,3213.6,3213.2,0.67309745]
[1737632118917,3.11141,3214.0,3213.2,0.67309745]
[1737632119214,3.11148,3213.9,3213.4,0.55]
[1737632119590,3.11148,3213.9,3213.2,0.55]
[1737632119782,3.11148,3213.9,3213.2,0.916225]
[1737632120184,3.11148,3213.9,3213.2,4.028375]
[1737632120588,3.11148,3213.9,3213.4,0.55]
[1737632121787,3.11148,3213.9,3213.4,1.3832]
[1737632122090,3.11148,3213.9,3213.5,0.12308249]
[1737632122416,3.11164,3213.8,3213.5,0.12308249]
[1737632124077,3.11138,3214.0,3213.6,0.55]
[1737632124693,3.11138,3214.0,3213.5,0.55]
[1737632125108,3.11149,3213.9,3213.5,0.55]
[1737632126413,3.0,3214.1,3213.5,0.55]
[1737632126617,3.11139,3214.0,3213.5,0.55]
[1737632127789,3.11128,3214.2,3213.5,4.111313]
[1737632127985,3.11129,3214.1,3213.5,4.111313]
[1737632129039,3.11129,3214.1,3213.6,0.12200296]
[1737632129392,3.11129,3214.1,3213.7,0.55]
[1737632130106,3.11129,3214.1,3213.5,0.999513]
[1737632130308,3.11129,3214.1,3213.6,0.55]
[1737632130508,3.11129,3214.1,3213.6,3.66173]
[1737632131831,3.11129,3214.1,3213.5,0.999513]
[1737632132016,3.11139,3214.0,3213.6,0.55]
[1737632132422,3.11139,3214.0,3213.5,0.55]
[1737632133140,3.11139,3214.0,3213.6,0.1220386]
[1737632134440,3.11139,3214.0,3213.5,0.55]
[1737632134995,3.0,3214.2,3213.5,3.66181]
[1737632135195,3.11136,3214.1,3213.5,4.422512]
[1737632135941,3.11136,3214.1,3213.7,0.55]
[1737632136913,6.11127,3214.2,3213.7,0.55]
[1737632137117,6.11127,3214.2,3213.6,3.11175]
[1737632137118,3.11136,3214.1,3213.5,3.66185]
[1737632137514,3.11136,3214.1,3213.7,0.55]
[1737632138015,3.11136,3214.1,3213.5,3.66186]
[1737632138016,3.11139,3214.0,3213.5,3.66186]
[1737632138203,3.11136,3214.1,3213.7,0.55]
[1737632138398,3.11136,3214.1,3213.6,0.55]
[1737632138832,3.11136,3214.1,3213.6,3.78383833]
[1737632139216,3.0,3214.2,3214.0,0.55]
[1737632139412,1.27063242,3214.6,3214.0,0.55]
[1737632139413,3.11072,3214.7,3214.2,0.55]
[1737632139643,3.11062,3214.8,3214.2,3.66113]
[1737632140058,3.11071,3214.7,3214.2,3.66113]
[1737632140550,3.11087,3214.6,3214.3,0.12212833]
[1737632141626,3.111,3214.4,3214.3,0.12212833]
[1737632142161,3.55334075,3214.4,3214.3,0.12212833]
[1737632142656,3.11122,3214.2,3214.0,0.24429928]
[1737632142856,3.111,3214.4,3214.0,0.24429928]
[1737632143039,3.732969,3214.6,3214.0,0.79429928]
[1737632143244,3.11129,3214.1,3214.0,0.24429928]
[1737632143679,6.55363075,3214.1,3214.0,0.24429928]
[1737632143846,7.38203075,3214.1,3214.0,0.24429928]
[1737632144015,7.38203075,3214.1,3213.1,0.24429928]
[1737632144016,3.11185,3213.6,3213.1,0.24429928]
[1737632144219,3.112,3213.4,3213.1,0.24429928]
[1737632144464,3.11216,3213.2,3213.1,0.24429928]
[1737632144868,6.55450075,3213.2,3213.1,0.24429928]
[1737632145034,7.38290075,3213.2,3213.1,0.24429928]
[1737632145545,6.55459075,3213.1,3213.0,5.09e-06]
[1737632145727,7.35739075,3213.1,3213.0,5.09e-06]
[1737632145934,8.40434583,3213.1,3213.0,5.09e-06]
[1737632146452,0.7925,3212.4,3211.6,3.1877505]
[1737632146765,3.11361,3211.7,3211.6,3.1877505]
[1737632147717,1.40050756,3212.4,3211.6,3.1877505]
[1737632147958,3.11352,3211.8,3211.6,3.1877505]
[1737632148861,3.0,3212.0,3211.6,3.1877505]
[1737632149925,6.11337,3212.0,3211.3,3.66399]
[1737632150147,3.11343,3211.9,3211.3,1.03489065]
[1737632150564,3.11334,3212.0,3211.3,4.14887065]
[1737632150740,3.0,3212.2,3211.3,1.03489065]
[1737632150937,3.11332,3212.0,3211.4,0.55]
[1737632152125,3.0,3212.2,3211.4,0.55]
[1737632152327,3.0,3212.1,3211.5,0.12205614]
[1737632152541,6.11325,3212.1,3211.5,0.12205614]
[1737632152852,3.11296,3212.4,3211.8,0.55]
[1737632153848,3.0,3212.3,3211.8,0.55]
[1737632154949,3.0,3212.3,3211.7,3.11359]
[1737632154950,0.611296,3212.3,3211.7,0.55]
[1737632155273,3.11352,3211.8,3211.2,0.7861]
[1737632155482,3.11379,3211.6,3211.2,0.7861]
[1737632156064,3.11352,3211.8,3211.2,0.7861]
[1737632156563,3.11352,3211.8,3211.3,0.55]
[1737632156764,3.11318,3212.2,3211.6,0.55]
[1737632156959,3.11333,3212.0,3211.6,0.55]
[1737632158009,0.622631,3212.2,3211.6,0.55]
[1737632158157,3.11318,3212.2,3211.6,0.55]
[1737632158789,3.0,3212.1,3211.6,0.55]
[1737632158962,3.11318,3212.2,3211.6,0.55]
[1737632159166,3.11323,3212.1,3211.6,0.55]
[1737632159796,3.11318,3212.2,3211.6,0.55]
[1737632161068,3.11318,3212.2,3211.6,3.66365]
[1737632161252,3.11318,3212.2,3211.7,3.1136]
[1737632161572,3.11318,3212.2,3211.6,0.55]
[1737632161753,3.11318,3212.2,3211.6,3.6637]
[1737632162453,3.11318,3212.2,3211.8,0.55]
[1737632162858,3.11318,3212.2,3211.6,3.66371]
[1737632163258,3.0,3212.3,3211.8,0.55]
[1737632163458,6.11307,3212.3,3211.8,0.55]
[1737632164262,3.0,3212.3,3211.8,0.55]
[1737632165966,3.0,3212.3,3211.8,3.66349]
[1737632166302,3.11277,3212.6,3211.8,1.227709]
[1737632166486,3.11277,3212.6,3212.2,0.55]
[1737632166677,3.11285,3212.5,3212.0,0.8039]
[1737632166888,3.11285,3212.5,3212.1,0.55]
[1737632167108,3.0,3212.6,3212.1,0.55]
[1737632167607,3.11275,3212.6,3212.1,3.66321]
[1737632167901,3.11275,3212.6,3212.1,0.55]
[1737632169102,3.11275,3212.6,3212.1,1.29214365]
[1737632169310,3.11275,3212.6,3212.1,0.55]
[1737632169508,3.11303,3212.3,3211.5,0.7682]
[1737632169712,3.11322,3212.1,3211.6,3.1137]
[1737632170212,3.11333,3212.0,3211.5,0.7682]
[1737632170704,3.11322,3212.1,3211.6,0.55]
[1737632170866,3.11304,3212.3,3211.6,0.55]
[1737632171067,3.11304,3212.3,3211.8,0.55]
[1737632171892,3.11288,3212.5,3211.8,0.55]
[1737632172110,3.11288,3212.5,3212.0,0.7641]
[1737632172412,3.11269,3212.7,3212.2,3.11312]
[1737632172614,3.11269,3212.7,3212.1,3.66316]
[1737632172926,6.11261,3212.8,3212.1,6.77632]
[1737632173082,6.11261,3212.8,3212.1,3.66316]
[1737632173282,6.11261,3212.8,3212.1,7.23110271]
[1737632173482,6.11261,3212.8,3212.2,3.7836771]
[1737632173687,3.11274,3212.6,3212.2,0.6705671]
[1737632174617,3.0,3212.8,3212.2,0.6705671]
[1737632174618,3.11303,3212.3,3212.2,0.1205671]
[1737632174845,3.424333,3212.3,3212.1,0.24207761]
[1737632175029,3.11303,3212.3,3212.1,0.24207761]
[1737632175710,3.11292,3212.5,3212.1,0.24207761]
[1737632176210,3.11293,3212.4,3212.1,0.24207761]
[1737632176408,3.11292,3212.5,3212.1,0.24207761]
[1737632176807,3.11292,3212.5,3212.2,0.31468613]
[1737632177416,3.11296,3212.4,3212.2,0.31468613]
[1737632177639,3.11303,3212.3,3212.2,0.31468613]
[1737632178440,3.11303,3212.3,3212.2,0.12102541]
[1737632179644,3.11292,3212.5,3212.2,0.12102541]
[1737632180858,3.11294,3212.4,3212.2,0.12102541]
[1737632181878,3.11294,3212.4,3212.3,0.12102541]
[1737632182257,3.735511,3212.4,3212.3,0.12102541]
[1737632184055,0.622571,3212.4,3212.3,0.12102541]
[1737632184752,3.11284,3212.5,3212.3,0.12102541]
[1737632186589,3.11284,3212.5,3212.4,0.12102541]
[1737632190348,3.11217,3213.2,3212.5,3.66277]
[1737632190686,3.11213,3213.3,3212.8,0.7973]
[1737632191245,3.11217,3213.2,3212.8,0.7973]
[1737632191957,0.30503077,3214.5,3213.1,3.11218]
[1737632192144,6.2231,3213.9,3213.3,3.11202]
[1737632192554,3.11155,3213.9,3213.3,3.11202]
[1737632192753,3.0,3214.0,3213.4,3.88425]
[1737632192957,3.0,3214.0,3213.5,3.11186]
[1737632193294,3.11136,3214.1,3213.6,0.55]
[1737632193885,3.0,3214.0,3213.6,0.55]
[1737632195471,3.87903,3214.3,3213.6,3.66175]
[1737632195664,3.0,3214.1,3213.6,3.66175]
[1737632196007,3.0,3214.1,3213.6,1.304591]
[1737632196343,3.11134,3214.1,3213.6,0.55]
[1737632198007,3.11153,3213.9,3213.4,0.7723]
[1737632198386,3.1117,3213.7,3213.2,0.7866]
[1737632198700,3.11177,3213.6,3213.5,0.12052731]
[1737632199202,6.11177,3213.6,3213.5,0.12052731]
[1737632199374,7.034112,3213.6,3213.5,0.12052731]
[1737632200179,3.11193,3213.5,3213.0,0.55]
[1737632200410,6.11177,3213.6,3213.0,3.66231]
[1737632200614,6.11177,3213.6,3213.0,0.55]
[1737632201014,9.22363,3213.6,3213.0,0.55]
[1737632201591,6.11177,3213.6,3213.0,0.55]
[1737632201918,6.11177,3213.6,3213.1,0.1205278]
[1737632202089,3.11196,3213.5,3213.1,0.1205278]
[1737632203322,3.11196,3213.5,3213.2,0.1205278]
[1737632203527,3.11172,3213.7,3213.2,0.1205278]
[1737632204277,3.11167,3213.7,3213.3,0.55]
[1737632204921,3.11167,3213.7,3213.3,0.6705278]
[1737632205091,3.11163,3213.8,3213.4,0.7734]
[1737632205626,6.91412,3214.0,3213.4,0.7734]
[1737632205627,6.11142,3214.0,3213.4,0.7734]
[1737632205922,3.11151,3213.9,3213.4,3.88533]
[1737632206519,3.11151,3213.9,3213.5,0.1205278]
[1737632206817,6.11142,3214.0,3213.6,0.55]
[1737632207430,9.22289,3214.0,3213.6,0.55]
[1737632208028,9.22289,3214.0,3213.5,0.55]
[1737632208227,3.11157,3213.9,3213.5,0.55]
[1737632208427,6.11142,3214.0,3213.5,0.55]
[1737632208614,3.11149,3213.9,3213.5,0.55]
[1737632210223,6.11142,3214.0,3213.5,0.55]
[1737632210433,6.11142,3214.0,3213.5,3.66186]
[1737632210637,6.11142,3214.0,3213.5,4.105386]
[1737632211925,3.11123,3214.2,3213.5,4.105386]
[1737632212228,3.11123,3214.2,3213.7,0.7843]
[1737632212411,3.11131,3214.1,3213.7,0.7843]
[1737632212620,1.14424957,3214.6,3213.7,0.7843]
[1737632212804,3.11152,3213.9,3213.7,0.7843]
[1737632213912,3.11158,3213.8,3213.7,0.7843]
[1737632214116,3.11158,3213.8,3213.4,0.19281392]
[1737632214326,3.11187,3213.5,3213.4,0.19281392]
[1737632215037,3.11187,3213.5,3213.4,0.1206112]
[1737632219443,3.92207,3213.5,3213.4,0.1206112]
[1737632221239,3.92207,3213.5,3212.8,0.24104235]
[1737632221542,3.11211,3213.3,3212.8,0.24104235]
[1737632222210,6.22426,3213.3,3212.8,0.24104235]
[1737632222625,3.11216,3213.2,3212.9,0.55577146]
[1737632223636,6.22441,3213.2,3212.9,0.55577146]
[1737632223793,3.11216,3213.2,3212.9,0.55577146]
[1737632224299,3.11216,3213.2,3213.0,0.31472911]
[1737632225812,3.11216,3213.2,3213.1,0.31472911]
[1737632226741,3.11202,3213.4,3213.1,0.31472911]
[1737632226947,6.22406,3213.4,3212.8,3.11252]
[1737632227427,3.11207,3213.3,3213.1,0.31433389]
[1737632228901,3.11207,3213.3,3213.2,0.31433389]
[1737632232005,3.11207,3213.3,3213.2,0.12088994]
[1737632233401,3.11207,3213.3,3213.2,0.92868994]
[1737632233715,3.11207,3213.3,3213.2,0.12088994]
[1737632234105,3.0,3213.4,3213.2,0.12088994]
[1737632234306,3.11206,3213.3,3213.2,0.12088994]
[1737632234651,3.11206,3213.3,3213.2,0.90538994]
[1737632235451,3.11169,3213.7,3213.2,0.90538994]
[1737632236139,3.0,3213.6,3213.3,0.31411891]
[1737632236835,3.11188,3213.5,3213.3,0.31411891]
[1737632237038,3.0,3213.6,3213.3,0.31411891]
[1737632237544,3.0,3213.6,3213.4,0.31411891]
[1737632237937,6.11177,3213.6,3213.4,0.31411891]
[1737632238138,3.11177,3213.6,3213.4,0.31411891]
[1737632238703,3.11177,3213.6,3213.5,0.31411891]
[1737632241050,3.11169,3213.7,3213.5,0.31411891]
[1737632243453,3.11169,3213.7,3213.6,0.31411891]
[1737632244637,3.815547,3213.7,3213.6,0.31411891]
[1737632244832,6.815547,3213.7,3213.6,0.31411891]
[1737632245037,7.17549657,3213.7,3213.6,0.31411891]
[1737632245355,7.17549657,3213.7,3213.6,0.12088994]
[1737632245652,6.11169,3213.7,3213.6,0.12088994]
[1737632246013,3.11141,3214.0,3213.6,0.12088994]
[1737632246456,6.22288,3214.0,3213.6,0.12088994]
[1737632246663,3.11148,3213.9,3213.7,0.12088994]
[1737632247139,3.11158,3213.8,3213.7,0.12088994]
[1737632247854,3.11158,3213.8,3213.7,0.4085165]
[1737632248424,3.0,3213.9,3213.7,0.4085165]
[1737632248778,0.8006,3214.8,3213.9,0.55]
[1737632248989,2.24,3216.3,3214.3,3.11103]
[1737632248990,3.11053,3214.9,3214.3,3.11103]
[1737632249188,3.11032,3215.1,3214.3,3.11103]
[1737632249189,3.11032,3215.1,3214.4,3.66099]
[1737632249398,3.11032,3215.1,3214.6,0.8307]
[1737632249688,3.11016,3215.3,3214.7,0.55]
[1737632250012,3.91674,3215.5,3214.8,3.11054]
[1737632250289,3.0,3215.6,3215.0,3.66041]
[1737632250487,3.0,3215.6,3215.0,0.55]
[1737632250488,6.10986,3215.6,3215.0,0.55]
[1737632250702,4.10074357,3215.7,3215.1,3.87887]
[1737632251261,3.10995,3215.5,3215.1,0.7686]
[1737632253491,3.11003,3215.4,3215.1,0.7686]
[1737632253707,3.11013,3215.3,3215.1,0.7686]
[1737632253914,3.11013,3215.3,3215.0,0.55]
[1737632253915,3.46976957,3215.7,3214.6,0.7552]
[1737632254115,3.11055,3214.9,3214.6,0.7552]
[1737632254400,3.11071,3214.7,3214.3,1.508186]
[1737632254605,3.11071,3214.7,3214.4,0.55]
[1737632254802,3.11055,3214.9,3214.4,0.55]
[1737632255099,6.22115,3214.9,3214.4,0.55]
[1737632255307,3.11055,3214.9,3214.4,1.0669316]
[1737632255809,3.11061,3214.8,3214.4,1.0669316]
[1737632256532,3.11061,3214.8,3214.4,0.55]
[1737632257147,3.11074,3214.7,3214.3,0.7554]
[1737632257446,3.11061,3214.8,3214.3,0.7554]
[1737632257909,3.11043,3215.0,3214.4,0.55]
[1737632258919,3.11043,3215.0,3214.5,3.11087]
[1737632259135,3.11043,3215.0,3214.5,3.863594]
[1737632260006,3.11043,3215.0,3214.5,0.752724]
[1737632260210,3.11043,3215.0,3214.4,3.66093]
[1737632260507,3.11043,3215.0,3214.5,3.1109]
[1737632260897,3.11024,3215.2,3214.6,0.55]
[1737632261100,3.11024,3215.2,3214.6,3.66078]
[1737632261817,3.0,3215.3,3214.8,0.55]
[1737632262024,3.0,3215.3,3214.8,4.43965]
[1737632262522,3.0,3215.3,3214.8,1.3291]
[1737632262744,3.0,3215.5,3214.8,1.773073]
[1737632263046,6.10994,3215.5,3215.0,0.55]
[1737632263549,3.10994,3215.5,3215.0,0.55]
[1737632264317,3.0,3215.6,3215.0,0.55]
[1737632264650,6.10989,3215.6,3215.0,0.55]
[1737632265317,6.10989,3215.6,3215.0,3.6604]
[1737632265548,3.11001,3215.5,3215.0,0.55]
[1737632266405,6.22004,3215.5,3215.0,0.55]
[1737632266605,3.11001,3215.5,3215.0,0.55]